Cogmind - Beta 9.4 @@@ ROGUE MODE // 2020.03.10 @ 17:00:21 Player: jellyman Result: Destroyed by Y-45 Defender with Beam Rifle Performance ------------- Evolutions (1) 500 Regions Visited (2) 400 Robots Destroyed (24) 120 Value Destroyed (615) 615 Prototype IDs (0) 0 Alien Tech Used (0) 0 Bonus (0) 0 TOTAL SCORE: 1635 Bonus ------- None Cogmind --------- Core Integrity 0/400 Matter 233/300 Energy 250/250 System Corruption 0% Temperature Cool (9) Movement Walking (150) Ox1 Location -9/Materials Parts ------- > --- POWER (1) -------- Ion Engine > --- PROPULSION (4) --- Aluminum Leg Aluminum Leg > --- UTILITY (2) ------ Large Storage Unit Large Storage Unit > --- WEAPON (2) ------- Light Cannon > --- INVENTORY (16) --- Improved Ion Engine Heavy Ion Engine Core Shielding Core Shielding Beam Rifle Assault Rifle Light Cannon Light Cannon Improved Light Cannon Grenade Launcher Rocket Launcher Peak State ------------ > --- POWER ------------ Ion Engine > --- PROPULSION ------- Aluminum Leg Aluminum Leg Aluminum Leg Aluminum Leg > --- UTILITY ---------- Large Storage Unit Large Storage Unit > --- WEAPON ----------- Medium Laser Assault Rifle > --- INVENTORY -------- Improved Ion Engine Heavy Ion Engine Core Shielding Core Shielding Beam Rifle Assault Rifle Assault Rifle Light Cannon Light Cannon Light Cannon Improved Light Cannon Grenade Launcher Grenade Launcher Grenade Launcher Rocket Launcher [Rating: 11] Favorites ----------- Power Ion Engine Engine Ion Engine Propulsion Aluminum Leg Leg Aluminum Leg Utility Large Storage Unit Storage Large Storage Unit Weapon Assault Rifle Energy Gun Medium Laser Ballistic Gun Assault Rifle Ballistic Cannon Light Cannon Launcher Grenade Launcher Build | -11 -10 -9 ------- Run | Scr Mat Mat Slots Evolved 2 | . . 2 Power . | . . . Propulsion 2 | . . 2 Utility . | . . . Weapon . | . . . Parts Attached 19 | 6 2 11 Power 2 | 1 . 1 Engine 2 | 1 . 1 Core . | . . . Reactor . | . . . Propulsion 8 | 2 . 6 Treads . | . . . Leg 8 | 2 . 6 Wheel . | . . . Hover . | . . . Flight . | . . . Utility 3 | 1 2 . Device . | . . . Storage 3 | 1 2 . Processor . | . . . Hackware . | . . . Protection . | . . . Artifact . | . . . Weapon 6 | 2 . 4 Energy Gun 1 | 1 . . Energy Cannon . | . . . Ballistic Gun 2 | 1 . 1 Ballistic Cannon 1 | . . 1 Launcher 2 | . . 2 Special Weapon . | . . . Impact Weapon . | . . . Slashing Weapon . | . . . Piercing Weapon . | . . . Special Melee Weapon . | . . . Unidentified Prototypes . | . . . Parts Lost 11 | . . 11 Power 1 | . . 1 Propulsion 5 | . . 5 Utility . | . . . Weapon 5 | . . 5 Highest Loss Streak 4 | . . 4 Average Slot Usage (%) 86 | . 97 81 Engine 10 | . 14 8 Leg 29 | . 28 30 Storage 23 | . 25 22 Energy Gun 8 | . 14 5 Ballistic Gun 11 | . 14 9 Launcher 2 | . . 4 Naked Turns . | . . . Heaviest Build 42 | 13 41 42 Greatest Support 40 | 20 20 40 Greatest Overweight (x) 12 | 1 4 12 Average Overweight (x) 1 | . 2 1 Largest Inventory Capacity 16 | 6 16 16 Average Capacity 14 | 5 14 16 Most Carried 16 | 1 16 15 Average Carried 11 | . 9 13 Final Capacity 16 | 6 16 16 Final Carried 16 | 1 16 11 Class Distribution -------------------- 100% | Mutant Dominant Class ---------------- Mutant | -10/Materials Mutant | -9/Materials Resources | -11 -10 -9 ----------- Run | Scr Mat Mat Matter Collected 462 | 218 44 200 Remotely . | . . . Salvage Created 650 | . 44 606 Parts 43 | . 2 41 Haulers Intercepted . | . . . Recyclers Shooed . | . . . Parts Field Recycled . | . . . Retrieved Matter . | . . . Parts Self-Destructed . | . . . Prevented . | . . . Kills | -11 -10 -9 ------- Run | Scr Mat Mat Combat Hostiles Destroyed 17 | . 1 16 Guns 9 | . 1 8 Cannons 2 | . . 2 AOE 6 | . . 6 Classes Destroyed 5 | . 1 4 Worker 4 | . . 4 Watcher 3 | . . 3 Swarmer 3 | . . 3 Grunt 13 | . 1 12 Sentry 1 | . . 1 Best Kill Streak 7 | . 1 7 Combat Bots Only 3 | . 1 3 Max Kills in Single Turn 3 | . 1 3 Gunslinging . | . . . Exploded 2 | . . 2 Melee . | . . . Uniques/NPCs Destroyed . | . . . Combat | -11 -10 -9 -------- Run | Scr Mat Mat Damage Taken 1631 | . 38 1593 Core 412 | . 12 400 Absorbed by Shields . | . . . Core Remaining (%) 97 | 100 95 . Volleys Fired 98 | . 17 81 Largest 1 | . 1 1 Hottest 50 | . 50 50 Shots Fired 98 | . 17 81 Gun 82 | . 17 65 Cannon 9 | . . 9 Launcher 7 | . . 7 Special . | . . . Kinetic 40 | . . 40 Thermal 51 | . 17 34 Explosive 7 | . . 7 Electromagnetic . | . . . Robot Hit Streak 9 | . 4 9 Robot Miss Streak 3 | . 3 3 Penetration Max . | . . . Secondary Targets . | . . . Shots Hit Robots 64 | . 10 54 Core Hits 43 | . 3 40 Critical Hits . | . . . Critical Kills . | . . . Critical Parts Destroyed . | . . . Melee Attacks . | . . . Impact . | . . . Slashing . | . . . Piercing . | . . . Sneak Attacks . | . . . Combat Hostiles . | . . . Follow-up Attacks . | . . . Damage Inflicted 1465 | . 138 1327 Guns 663 | . 126 537 Cannons 107 | . . 107 Explosions 680 | . . 680 Melee . | . . . Ramming 15 | . 12 3 Kinetic 371 | . . 371 Thermal 399 | . 126 273 Explosive 613 | . . 613 Electromagnetic 67 | . . 67 Impact . | . . . Slashing . | . . . Piercing . | . . . Highest Corruption . | . . . Average Corruption . | . . . Corruption Purged . | . . . Overload Shots . | . . . Overflow Damage 12 | . . 12 Projectiles . | . . . Explosions 12 | . . 12 Melee . | . . . Knockbacks . | . . . Impact . | . . . Kinetic . | . . . Secondary . | . . . Self-Inflicted Damage 41 | . 6 35 Shots 1 | . . 1 Rammed 3 | . 2 1 Targets Rammed 3 | . 2 1 Kicked . | . . . Crushed . | . . . Highest Temperature 80 | . 80 59 Average Temperature 24 | . 36 18 Received Heat Transfer 789 | . 18 771 Siege Activations . | . . . Robots Corrupted . | . . . Combat Hostiles . | . . . Parts Fried . | . . . Impact Corruptions . | . . . Robots Melted . | . . . Combat Hostiles . | . . . Parts Melted 4 | . 1 3 Heat Transferred 1184 | . 370 814 Parts Sabotaged . | . . . Parts Stolen . | . . . Parts Stripped . | . . . Power Chain Reactions . | . . . Missiles Intercepted . | . . . Alert | -11 -10 -9 ------- Run | Scr Mat Mat Peak Influence 202 | . 45 202 Average Influence 69 | . 20 97 Maximum Alert Level 1 | . . 1 Low Security (%) 93 | 100 100 90 Level 1 6 | . . 9 Level 2 . | . . . Level 3 . | . . . Level 4 . | . . . Level 5 . | . . . High Security . | . . . Max Security . | . . . Squads Dispatched 3 | . 1 2 Investigation . | . . . Extermination . | . . . Reinforcement 3 | . 1 2 Assault . | . . . Garrison . | . . . Intercept . | . . . Construction Impeded . | . . . Haulers Reinforced . | . . . Stealth | -11 -10 -9 --------- Run | Scr Mat Mat Distress Signals 2 | . . 2 Communications Jammed . | . . . Distress Signals . | . . . Times Spotted 27 | . 3 24 Peak Tracking Total 4 | . 1 4 Tactical Retreats . | . . . Traps | -11 -10 -9 ------- Run | Scr Mat Mat Traps Triggered . | . . . Indirectly . | . . . Trap Hack Attempts . | . . . Triggered . | . . . Disarmed . | . . . Reprogrammed . | . . . Reused . | . . . Traps Extracted . | . . . Installed . | . . . Triggered . | . . . Machines | -11 -10 -9 ---------- Run | Scr Mat Mat Machines Disabled 2 | . . 2 Max in Single Turn 2 | . . 2 Machines Sabotaged . | . . . Garrisons Compromised . | . . . Overloaded Fab Kills . | . . . Fab Network Shutdowns . | . . . Hacking | -11 -10 -9 --------- Run | Scr Mat Mat Machines Accessed 5 | . 1 4 Terminals 2 | . 1 1 Fabricators . | . . . Repair Stations 1 | . . 1 Recycling Units 1 | . . 1 Scanalyzers 1 | . . 1 Garrison Access . | . . . Total Hacks 8 | . 1 7 Successful 8 | . 1 7 Failed . | . . . Catastrophic . | . . . Database Lockouts . | . . . Manual . | . . . Terminals 2 | . 1 1 Fabricators . | . . . Repair Stations 2 | . . 2 Recycling Units 2 | . . 2 Scanalyzers 2 | . . 2 Garrison Access . | . . . Terminal Hacks 2 | . 1 1 Record 2 | . 1 1 Fabricator Hacks . | . . . Repair Station Hacks 2 | . . 2 Scan Component 1 | . . 1 Repair 1 | . . 1 Recycling Unit Hacks 2 | . . 2 Recycle Component 2 | . . 2 Scanalyzer 2 | . . 2 Insert Component 1 | . . 1 Analyze 1 | . . 1 Garrison Access Hacks . | . . . Unauthorized Hacks . | . . . Terminals . | . . . Fabricators . | . . . Repair Stations . | . . . Recycling Units . | . . . Scanalyzers . | . . . Garrison Access . | . . . Data Cores Recovered . | . . . Used . | . . . Hacking Detections 1 | . . 1 Full Trace Events . | . . . Feedback Events . | . . . Feedback Blocked . | . . . Robot Schematics Acquired . | . . . Robots Built . | . . . Matter . | . . . Time . | . . . Total Robot Build Rating . | . . . Part Schematics Acquired 1 | . . 1 Parts Built . | . . . Matter . | . . . Time . | . . . Total Part Build Rating . | . . . Parts Repaired 1 | . . 1 Time 36 | . . 36 Parts Recycled 2 | . . 2 Recycled Matter . | . . . Retrieved Matter . | . . . Retrieved Components . | . . . Parts Scanalyzed 1 | . . 1 Part Schematics Acquired 1 | . . 1 Parts Damaged . | . . . Bothacking | -11 -10 -9 ------------ Run | Scr Mat Mat Used RIF Installer . | . . . Robots Hacked . | . . . Non-combat . | . . . Combat . | . . . Robot Hacks Applied . | . . . Relay Couplers Released . | . . . Robots Rewired . | . . . Allies Hacked . | . . . Hacks Repelled . | . . . Allies | -11 -10 -9 -------- Run | Scr Mat Mat Total Allies . | . . . Largest Group . | . . . Highest-Rated Group . | . . . Highest-Rated Ally . | . . . Total Orders . | . . . Ally Attacks . | . . . Total Damage . | . . . Kills . | . . . Allies Corrupted . | . . . Allies Melted . | . . . Intel | -11 -10 -9 ------- Run | Scr Mat Mat Robot Analysis Total . | . . . Derelict Logs Recovered . | . . . Drone Launches . | . . . Drone Recoveries . | . . . Exploration | -11 -10 -9 ------------- Run | Scr Mat Mat Turns Passed 1364 | 60 425 879 Spaces Moved 592 | 47 200 345 Core 38 | 16 . 22 Treads . | . . . Legs 554 | 31 200 323 Wheels . | . . . Hover . | . . . Flight . | . . . Fastest Speed 50 | 50 120 150 Average Speed 177 | 108 181 183 Slowest Speed 650 | 120 240 650 Overloaded Moves . | . . . Propulsion Burnouts . | . . . Robots Hopped . | . . . Cave-ins Triggered . | . . . Exploration Rate (%) 17 | 3 25 24 Regions Visited 2 Branch Regions . Pre-discovered Areas . | . . . Known Exits Taken . | . . . Unknown Exits Taken 2 | 1 1 . Scrap Searched . | . . . Spaces Dug . | . . . Terrain Destroyed 57 | . . 57 Melee . | . . . Projectile . | . . . AOE 57 | . . 57 Actions | -11 -10 -9 --------- Run | Scr Mat Mat Total 798 | 53 243 502 Wait 65 | . 8 57 Move 590 | 46 199 345 Hop . | . . . Pick Up 20 | 1 14 5 Fast Attach 13 | 6 2 5 Attach 6 | . . 6 Detach 1 | . 1 . Swap . | . . . Drop 2 | . . 2 Fire 98 | . 17 81 Melee . | . . . Ram 1 | . . 1 Kick 2 | . 2 . Crush . | . . . Escape Stasis . | . . . Rewire . | . . . Trap . | . . . Miscellaneous . | . . . Route ------- -11/Scrapyard -10/Materials -9/Materials History --------- Turn | Location | Event 8 | -11/Scrapyard | Discovered new exit (range 15) 61 | -11/Scrapyard | Entered Materials 307 | -10/Materials | Build established: Mutant 368 | -10/Materials | Discovered new exit (range 6) 486 | -10/Materials | Entered another Materials area 486 | -9/Materials | Evolved 2 slots: Propulsion x2 738 | -9/Materials | Repaired Broken Aluminum Leg 1150 | -9/Materials | Lost 4 parts (1p2n1w) 1255 | -9/Materials | Core integrity fell below 50% 1300 | -9/Materials | Lost 3 parts (1n2w) 1312 | -9/Materials | Core integrity fell below 20% 1365 | -9/Materials | Destroyed by Y-45 Defender with Beam Rifle Last Messages --------------- 01300_ R-06 Scavenger collects Aluminum Leg. 01313_ G-34 Mercenary destroyed. 01326_ U-05 Engineer lays Concrete. 01333_ Acquired Aluminum Leg. 01337_ Acquired Ion Engine. 01340_ K-01 Serf collects debris. 01341_ Acquired 43 matter. 01343_ K-01 Serf collects debris. 01344_ O-16 Technician: "IFF HANDSHAKE FAILED. SECURING TERMINAL." 01345_ Acquired Aluminum Leg. 01345_ R-06 Scavenger collects Sml. Laser. 01346_ K-01 Serf collects debris. 01349_ K-01 Serf cleans the Terminal. 01350_ O-16 Technician uses terminal to summon reinforcements. 01350_ ALERT: Hostiles spotted, dispatching reinforcements to Terminal M011. 01350_ O-16 Technician locks terminal. 01354_ G-34 Mercenary destroyed. 01356_ K-01 Serf cleans the Terminal. 01356_ U-05 Engineer lays Concrete. Map ----- +----------------------------------------------------+ | ??????????????????????????????????#!!! ## ## | | ??????????????????????????????????#!! ] # # | | ??????????????????????????????????#!! + | | ??????????????????????????????????# """ # | | ??????????????????????????????????# """ # # | | ??????????????????????????????????# """ ## ## | | ??????????????????????????????????# ## ## | | ????????????????????????????#?#???# ## ## | | ????????????????????????????# #???############ ## | | ????????????????????????????# #???????????#### ## | | ????????????????????????????# #???????????# # | | ????????????????????????????# #???????????# | | ????????????????????????????# #???????????# | | ????????????????????????????# #???????????# | | ????????????????????????????# ##??####????# #% # | | ???????????????????????????## ##### ????# # # | | ???????????????????????????# ############# ## | | ???????????????????????????# " % | | ?????????????????###???????# "T | | ????????????????##!!!??????# % | | ????????????????#! ?????# ##########+###### | | ??????????? ????#! !????##% %## #????# ????? | | ??????????? # ###### # #?????# ????? | | ?????????? Y u####??????# "???? | | ?????????? k #?????????# "???? | | ??????????# a @ a #?????????# ??? | | ????????????????############# #?????????# ""??? | | ????????????????????????????# #?????????# """?? | | ????????????????????????????# #?????????? ""??? | | ????????????????????????????#% #?????????? ???? | | ????????????????????????????# #??????????###???? | | ????????????????????????????# ????????????????? | | ????????????????????????????# # ???????????????? | | ????????????????????????????/ ##???????????????? | | ????????????????????????????# #????????????????? | | ????????????????????????????# #????????????????? | | ????????????????????????????? #????????????????? | | ????????????????????????????? #????????????????? | | ????????????????????????????? #????????????????? | | ????????????????????????????? ?????????????????? | | ?????????????????????????????????????????????????? | | ?????????????????????????????????????????????????? | | ?????????????????????????????????????????????????? | | ?????????????????????????????????????????????????? | | ?????????????????????????????????????????????????? | | ?????????????????????????????????????????????????? | | ?????????????????????????????????????????????????? | | ?????????????????????????????????????????????????? | | ?????????????????????????????????????????????????? | | ?????????????????????????????????????????????????? | +----------------------------------------------------+ Best States ------------- Heat Dissipation 28 Energy Generation 10 Energy Capacity 250 Matter Stores 300 Matter Capacity 300 Sight Range 16 Terrain Scan Density 10 Evasion (%) 40 Item Schematics ----------------- Imp. Light Cannon | -9/Materials | Scanalyzed Robot Schematics ------------------ None Fabricated ------------ Nothing Alien Tech Used ----------------- None Achievements -------------- None Challenges ------------ None Game ------ Seed AlertUltimateShotgun Manual? 0 Play Time 00:18:31 Cumulative 4.0 hours Start 2020.03.10 @ 16:29:30 End 2020.03.10 @ 17:00:21 Sessions 1 Manual Loads 0 Difficulty Rogue Special Mode None Game No. 11 Rogue 11 Adventurer 0 Explorer 0 Win Type - Total 0 Types 0/0/0/0/0/0/0 Lore% 4 Gallery% 9 Achievement% 8 Wizard Run 0 Options --------- ASCII 1 Keyboard 1 Movement Numpad Keybinds 0 Fullscreen 1 Font 16/CogWide Map View 76x50 Tactical HUD 1 Map Filters NONE Filters NONE Steam 1 RUN: 93b00cdc-ce35-4574-b929-8123cbde28e5